[Event "Live Chess"]
[Site "Chess.com"]
[Date "2023.05.20"]
[Round "-"]
[White "Davidagye"]
[Black "Pandreq"]
[Result "1-0"]
[WhiteElo "1658"]
[BlackElo "1270"]
[TimeControl "300"]
[EndTime "10:34:04 PDT"]
[Termination "Davidagye won on time"]

1. e4 {[%clk 0:04:58.4]} 1... Nf6 {[%clk 0:04:58.6]} 2. e5 {[%clk 0:04:57.3]}
2... Nd5 {[%clk 0:04:57.5]} 3. c4 {[%clk 0:04:54.9]} 3... Nb6 {[%clk 0:04:56.5]}
4. d4 {[%clk 0:04:54.3]} 4... d6 {[%clk 0:04:55.1]} 5. f4 {[%clk 0:04:53.6]}
5... Nc6 {[%clk 0:04:52]} 6. d5 {[%clk 0:04:51.6]} 6... Nb8 {[%clk 0:04:45.9]}
7. Bd3 {[%clk 0:04:47.5]} 7... c5 {[%clk 0:04:38.8]} 8. Qe2 {[%clk 0:04:38.2]}
8... g6 {[%clk 0:04:31.8]} 9. e6 {[%clk 0:04:36.3]} 9... fxe6 {[%clk 0:04:24.5]}
10. dxe6 {[%clk 0:04:34.9]} 10... Nc6 {[%clk 0:04:17.4]} 11. Nf3 {[%clk
0:04:29.2]} 11... Bg7 {[%clk 0:04:07.7]} 12. f5 {[%clk 0:04:26.1]} 12... gxf5
{[%clk 0:03:58.1]} 13. Ng5 {[%clk 0:04:08.4]} 13... Ne5 {[%clk 0:03:46.9]} 14.
O-O {[%clk 0:03:52.5]} 14... O-O {[%clk 0:03:34.9]} 15. Qh5 {[%clk 0:03:47.9]}
15... h6 {[%clk 0:03:27.9]} 16. Bxf5 {[%clk 0:03:42.6]} 16... Qe8 {[%clk
0:03:16.4]} 17. Nf7 {[%clk 0:03:28.5]} 17... Nxf7 {[%clk 0:03:10.1]} 18. Bg6
{[%clk 0:03:03.8]} 18... Bxe6 {[%clk 0:03:03.5]} 19. Nc3 {[%clk 0:02:53.3]}
19... Nxc4 {[%clk 0:02:55.6]} 20. Rf3 {[%clk 0:02:33.5]} 20... Nce5 {[%clk
0:02:49.5]} 21. Rg3 {[%clk 0:02:30.9]} 21... Nxg6 {[%clk 0:02:03.8]} 22. Qxg6
{[%clk 0:02:28.6]} 22... Ng5 {[%clk 0:01:57.2]} 23. Rxg5 {[%clk 0:02:15.9]}
23... hxg5 {[%clk 0:01:52.3]} 24. Qxe6+ {[%clk 0:02:14.7]} 24... Rf7 {[%clk
0:01:48.1]} 25. Bxg5 {[%clk 0:02:11.6]} 25... Bf6 {[%clk 0:01:34.2]} 26. Qg4
{[%clk 0:02:03.4]} 26... Bxg5 {[%clk 0:01:32.4]} 27. Qxg5+ {[%clk 0:01:55.8]}
27... Rg7 {[%clk 0:01:31]} 28. Qd5+ {[%clk 0:01:53.6]} 28... Kh8 {[%clk
0:01:19.6]} 29. Rf1 {[%clk 0:01:47]} 29... b6 {[%clk 0:01:09.8]} 30. Rf3 {[%clk
0:01:43.3]} 30... Qg8 {[%clk 0:00:54.7]} 31. Rh3+ {[%clk 0:01:26.9]} 31... Rh7
{[%clk 0:00:49.5]} 32. Rxh7+ {[%clk 0:01:19.5]} 32... Qxh7 {[%clk 0:00:45.4]}
33. Qxa8+ {[%clk 0:01:18.6]} 33... Kg7 {[%clk 0:00:38.6]} 34. Qe4 {[%clk
0:01:17.2]} 34... Qxe4 {[%clk 0:00:35.6]} 35. Nxe4 {[%clk 0:01:15.7]} 35... Kf7
{[%clk 0:00:33.9]} 36. Kf2 {[%clk 0:01:14.7]} 36... Ke6 {[%clk 0:00:31.7]} 37.
Ke3 {[%clk 0:01:13.7]} 37... Ke5 {[%clk 0:00:28.3]} 38. h4 {[%clk 0:01:12.3]}
38... d5 {[%clk 0:00:24.5]} 39. Ng5 {[%clk 0:01:03.8]} 39... d4+ {[%clk
0:00:22.4]} 40. Kd3 {[%clk 0:01:02.4]} 40... Kf5 {[%clk 0:00:20]} 41. b4 {[%clk
0:00:59.5]} 41... e5 {[%clk 0:00:17.8]} 42. bxc5 {[%clk 0:00:58.3]} 42... bxc5
{[%clk 0:00:13.6]} 43. Nf3 {[%clk 0:00:56.6]} 43... e4+ {[%clk 0:00:09.8]} 44.
Ke2 {[%clk 0:00:55.6]} 44... exf3+ {[%clk 0:00:08.6]} 45. Kxf3 {[%clk 0:00:54]}
45... c4 {[%clk 0:00:06.7]} 46. g4+ {[%clk 0:00:52.9]} 46... Kf6 {[%clk
0:00:02.3]} 47. Ke4 {[%clk 0:00:48.7]} 1-0

[Event "Live Chess"]
[Site "Chess.com"]
[Date "2023.05.20"]
[Round "-"]
[White "misha464"]
[Black "AttackingSnowLeopard"]
[Result "0-1"]
[WhiteElo "761"]
[BlackElo "2065"]
[TimeControl "300"]
[EndTime "10:34:06 PDT"]
[Termination "AttackingSnowLeopard won by checkmate"]

1. e4 {[%clk 0:04:55.5]} 1... e5 {[%clk 0:04:58.6]} 2. Nf3 {[%clk 0:04:54.6]}
2... Nc6 {[%clk 0:04:58]} 3. Nc3 {[%clk 0:04:53.6]} 3... Nf6 {[%clk 0:04:56.7]}
4. d3 {[%clk 0:04:52]} 4... Bb4 {[%clk 0:04:55.2]} 5. Bd2 {[%clk 0:04:51.1]}
5... d6 {[%clk 0:04:54.1]} 6. a3 {[%clk 0:04:50.2]} 6... Bxc3 {[%clk 0:04:52.9]}
7. Bxc3 {[%clk 0:04:49.4]} 7... O-O {[%clk 0:04:52.3]} 8. Be2 {[%clk 0:04:48.8]}
8... Re8 {[%clk 0:04:51.5]} 9. b3 {[%clk 0:04:46.2]} 9... d5 {[%clk 0:04:50.6]}
10. exd5 {[%clk 0:04:44.8]} 10... Nxd5 {[%clk 0:04:50.5]} 11. Qd2 {[%clk
0:04:39]} 11... Nxc3 {[%clk 0:04:46]} 12. Qxc3 {[%clk 0:04:37.8]} 12... Nd4
{[%clk 0:04:45.6]} 13. Nxd4 {[%clk 0:04:35.1]} 13... exd4 {[%clk 0:04:45.5]} 14.
Qd2 {[%clk 0:04:32.6]} 14... Bg4 {[%clk 0:04:44.4]} 15. f3 {[%clk 0:04:28.5]}
15... Bf5 {[%clk 0:04:43.1]} 16. O-O-O {[%clk 0:04:26.2]} 16... Re3 {[%clk
0:04:41.5]} 17. Rhe1 {[%clk 0:04:18.6]} 17... Qd6 {[%clk 0:04:16]} 18. g4 {[%clk
0:04:09.1]} 18... Qxa3+ {[%clk 0:03:50.3]} 19. Kb1 {[%clk 0:04:07.1]} 19... Be6
{[%clk 0:03:49.9]} 20. Rc1 {[%clk 0:03:51.4]} 20... a5 {[%clk 0:03:39.7]} 21. c4
{[%clk 0:03:48.7]} 21... dxc3 {[%clk 0:03:31.8]} 22. Rxc3 {[%clk 0:03:44]} 22...
a4 {[%clk 0:03:20.1]} 23. Qxe3 {[%clk 0:03:41.2]} 23... axb3 {[%clk 0:03:17.5]}
24. Rxb3 {[%clk 0:02:57.1]} 24... Qxb3+ {[%clk 0:03:12.9]} 25. Kc1 {[%clk
0:02:54.8]} 25... Ra1+ {[%clk 0:03:12.1]} 26. Kd2 {[%clk 0:02:53.5]} 26... Qb2#
{[%clk 0:03:11.7]} 0-1

[Event "Live Chess"]
[Site "Chess.com"]
[Date "2023.05.20"]
[Round "-"]
[White "atunnacl"]
[Black "yeetpizza74"]
[Result "1-0"]
[WhiteElo "1443"]
[BlackElo "448"]
[TimeControl "300"]
[EndTime "10:34:08 PDT"]
[Termination "atunnacl won by checkmate"]

1. e4 {[%clk 0:04:57.9]} 1... c6 {[%clk 0:04:58.9]} 2. d4 {[%clk 0:04:55.1]}
2... d5 {[%clk 0:04:57.3]} 3. exd5 {[%clk 0:04:54]} 3... cxd5 {[%clk 0:04:56.1]}
4. Nf3 {[%clk 0:04:52]} 4... Nf6 {[%clk 0:04:52.2]} 5. Ne5 {[%clk 0:04:49.9]}
5... Bg4 {[%clk 0:04:45.1]} 6. Bb5+ {[%clk 0:04:41.6]} 6... Nc6 {[%clk
0:04:35.1]} 7. f3 {[%clk 0:04:38]} 7... Bf5 {[%clk 0:04:28.8]} 8. g4 {[%clk
0:04:33.3]} 8... Bg6 {[%clk 0:04:25.8]} 9. h4 {[%clk 0:04:31.4]} 9... e6 {[%clk
0:04:20.9]} 10. h5 {[%clk 0:04:26.8]} 10... Bb4+ {[%clk 0:04:14.4]} 11. c3
{[%clk 0:04:23.9]} 11... Bd6 {[%clk 0:04:09.4]} 12. Nd2 {[%clk 0:04:19.8]} 12...
Bxe5 {[%clk 0:03:42.7]} 13. hxg6 {[%clk 0:04:16.6]} 13... fxg6 {[%clk
0:03:36.2]} 14. dxe5 {[%clk 0:04:12.9]} 14... Nd7 {[%clk 0:03:26.2]} 15. Qa4
{[%clk 0:04:08.4]} 15... Qc8 {[%clk 0:03:13.4]} 16. Nb3 {[%clk 0:03:59.3]} 16...
O-O {[%clk 0:03:06.5]} 17. Ke2 {[%clk 0:03:48.6]} 17... Ndxe5 {[%clk 0:03:04.3]}
18. Rh3 {[%clk 0:03:18]} 18... a6 {[%clk 0:02:52.4]} 19. Bxc6 {[%clk 0:03:14.3]}
19... bxc6 {[%clk 0:02:51.3]} 20. Nd4 {[%clk 0:03:11.4]} 20... c5 {[%clk
0:02:42.8]} 21. Nc2 {[%clk 0:02:54.4]} 21... Rd8 {[%clk 0:02:30.1]} 22. Bf4
{[%clk 0:02:49.1]} 22... Nc6 {[%clk 0:02:19.6]} 23. Rah1 {[%clk 0:02:43.4]}
23... d4 {[%clk 0:02:12.2]} 24. cxd4 {[%clk 0:02:39]} 24... cxd4 {[%clk
0:02:10.9]} 25. Kd3 {[%clk 0:02:22.2]} 25... e5 {[%clk 0:02:04.9]} 26. Bg5
{[%clk 0:02:19.7]} 26... Re8 {[%clk 0:01:57.1]} 27. Qc4+ {[%clk 0:02:13.1]}
27... Re6 {[%clk 0:01:43]} 28. Rxh7 {[%clk 0:02:06]} 28... Kf7 {[%clk
0:01:26.9]} 29. Rh8 {[%clk 0:01:20.2]} 29... Qb7 {[%clk 0:01:16.9]} 30. Rxa8
{[%clk 0:01:18.8]} 30... Qxa8 {[%clk 0:01:14.7]} 31. f4 {[%clk 0:01:05.4]} 31...
Na5 {[%clk 0:01:08.5]} 32. Qc7+ {[%clk 0:01:00.4]} 32... Ke8 {[%clk 0:00:59.7]}
33. Rh8# {[%clk 0:00:48.1]} 1-0

[Event "Live Chess"]
[Site "Chess.com"]
[Date "2023.05.20"]
[Round "-"]
[White "MaximKris"]
[Black "BogdanBeleiUkraine"]
[Result "1-0"]
[WhiteElo "1858"]
[BlackElo "1238"]
[TimeControl "300"]
[EndTime "10:34:12 PDT"]
[Termination "MaximKris won by resignation"]

1. e4 {[%clk 0:04:58.6]} 1... e5 {[%clk 0:04:58.9]} 2. Nf3 {[%clk 0:04:57.6]}
2... Nc6 {[%clk 0:04:58.1]} 3. Nc3 {[%clk 0:04:56.6]} 3... Bc5 {[%clk
0:04:56.9]} 4. Bc4 {[%clk 0:04:55.5]} 4... a6 {[%clk 0:04:55.6]} 5. O-O {[%clk
0:04:54.7]} 5... h6 {[%clk 0:04:54.5]} 6. d3 {[%clk 0:04:53.5]} 6... Na5 {[%clk
0:04:50.7]} 7. Be3 {[%clk 0:04:52.4]} 7... Bxe3 {[%clk 0:04:48.8]} 8. fxe3
{[%clk 0:04:52.3]} 8... Nxc4 {[%clk 0:04:47.9]} 9. dxc4 {[%clk 0:04:52.2]} 9...
Ne7 {[%clk 0:04:47]} 10. Nxe5 {[%clk 0:04:51.6]} 10... f6 {[%clk 0:04:45.7]} 11.
Qh5+ {[%clk 0:04:48.8]} 11... g6 {[%clk 0:04:31.1]} 12. Nxg6 {[%clk 0:04:47.3]}
12... Nxg6 {[%clk 0:04:29.6]} 13. Qxg6+ {[%clk 0:04:47.2]} 13... Kf8 {[%clk
0:04:26.7]} 14. Rxf6+ {[%clk 0:04:46]} 14... Qxf6 {[%clk 0:04:23.8]} 15. Qxf6+
{[%clk 0:04:45.9]} 1-0

[Event "Live Chess"]
[Site "Chess.com"]
[Date "2023.05.20"]
[Round "-"]
[White "Duke_of_Bebington"]
[Black "Nazarenko_vital"]
[Result "1/2-1/2"]
[WhiteElo "1583"]
[BlackElo "1603"]
[TimeControl "300"]
[EndTime "10:34:14 PDT"]
[Termination "Game drawn - insufficient material"]

1. e4 {[%clk 0:04:58.2]} 1... d5 {[%clk 0:04:58.6]} 2. exd5 {[%clk 0:04:56.6]}
2... Qxd5 {[%clk 0:04:58.2]} 3. d4 {[%clk 0:04:50.6]} 3... Qa5+ {[%clk
0:04:57.3]} 4. Bd2 {[%clk 0:04:44.5]} 4... Qb6 {[%clk 0:04:54.6]} 5. Bc3 {[%clk
0:04:41]} 5... Nf6 {[%clk 0:04:49.5]} 6. Bd3 {[%clk 0:04:34.8]} 6... c6 {[%clk
0:04:47.7]} 7. Nf3 {[%clk 0:04:32.7]} 7... Bg4 {[%clk 0:04:46.3]} 8. h3 {[%clk
0:04:27.8]} 8... Bh5 {[%clk 0:04:44.8]} 9. O-O {[%clk 0:04:26]} 9... e6 {[%clk
0:04:42.7]} 10. Nbd2 {[%clk 0:04:24.9]} 10... Nbd7 {[%clk 0:04:30.4]} 11. Re1
{[%clk 0:04:18.6]} 11... Be7 {[%clk 0:04:29]} 12. Qc1 {[%clk 0:04:12.7]} 12...
Bg6 {[%clk 0:04:18.2]} 13. Bxg6 {[%clk 0:04:03.8]} 13... hxg6 {[%clk 0:04:16.6]}
14. Ng5 {[%clk 0:04:00.1]} 14... Qc7 {[%clk 0:04:09.4]} 15. Nde4 {[%clk
0:03:50.6]} 15... Ng4 {[%clk 0:03:57.7]} 16. hxg4 {[%clk 0:03:16.8]} 16... Qh2+
{[%clk 0:03:54.1]} 17. Kf1 {[%clk 0:03:16.2]} 17... Qh1+ {[%clk 0:03:31]} 18.
Ke2 {[%clk 0:03:14.7]} 18... Qxg2 {[%clk 0:03:23.9]} 19. Qf4 {[%clk 0:03:05.1]}
19... Nf6 {[%clk 0:03:15.4]} 20. Rg1 {[%clk 0:02:54.2]} 20... Qh2 {[%clk
0:03:07.2]} 21. Qxh2 {[%clk 0:02:47.6]} 21... Rxh2 {[%clk 0:03:04.7]} 22. Nxf6+
{[%clk 0:02:16.3]} 22... gxf6 {[%clk 0:02:54.9]} 23. Ne4 {[%clk 0:02:13]} 23...
O-O-O {[%clk 0:02:52.9]} 24. Rh1 {[%clk 0:02:02]} 24... Rdh8 {[%clk 0:02:44.6]}
25. Rxh2 {[%clk 0:02:00.5]} 25... Rxh2 {[%clk 0:02:33.3]} 26. Bd2 {[%clk
0:01:56.4]} 26... Kd7 {[%clk 0:02:08.5]} 27. Bf4 {[%clk 0:01:39.9]} 27... Rh4
{[%clk 0:01:53]} 28. f3 {[%clk 0:01:32.1]} 28... f5 {[%clk 0:01:47.8]} 29. Nf2
{[%clk 0:01:27.5]} 29... Ke8 {[%clk 0:01:44.5]} 30. Rh1 {[%clk 0:01:22.9]} 30...
Rxh1 {[%clk 0:01:39.3]} 31. Nxh1 {[%clk 0:01:22.8]} 31... a6 {[%clk 0:01:32.9]}
32. Ng3 {[%clk 0:00:58.4]} 32... fxg4 {[%clk 0:01:25.1]} 33. fxg4 {[%clk
0:00:56.9]} 33... f5 {[%clk 0:01:23.3]} 34. gxf5 {[%clk 0:00:55.3]} 34... exf5
{[%clk 0:01:20.3]} 35. Kf3 {[%clk 0:00:54.5]} 35... Kd7 {[%clk 0:01:17.1]} 36.
b3 {[%clk 0:00:53.3]} 36... Ke6 {[%clk 0:01:14.1]} 37. Ne2 {[%clk 0:00:51.9]}
37... g5 {[%clk 0:01:11.1]} 38. Be5 {[%clk 0:00:51.1]} 38... b5 {[%clk
0:01:05.9]} 39. Ng3 {[%clk 0:00:46.5]} 39... c5 {[%clk 0:01:02.5]} 40. c3 {[%clk
0:00:43.5]} 40... cxd4 {[%clk 0:00:58.6]} 41. cxd4 {[%clk 0:00:43.4]} 41... Bf6
{[%clk 0:00:54.2]} 42. Bxf6 {[%clk 0:00:34.9]} 42... Kxf6 {[%clk 0:00:53.7]} 43.
Ne2 {[%clk 0:00:33.6]} 43... Ke6 {[%clk 0:00:49.6]} 44. Nc3 {[%clk 0:00:32.6]}
44... b4 {[%clk 0:00:46.1]} 45. Na4 {[%clk 0:00:29.3]} 45... Kd5 {[%clk
0:00:43.3]} 46. Nc5 {[%clk 0:00:27]} 46... a5 {[%clk 0:00:42.5]} 47. Ke3 {[%clk
0:00:23.4]} 47... Kd6 {[%clk 0:00:38.9]} 48. Nd3 {[%clk 0:00:21.3]} 48... Kc6
{[%clk 0:00:35.5]} 49. Ne5+ {[%clk 0:00:19.5]} 49... Kd5 {[%clk 0:00:34.6]} 50.
Nf7 {[%clk 0:00:18.7]} 50... f4+ {[%clk 0:00:27.8]} 51. Kf3 {[%clk 0:00:16.5]}
51... Kxd4 {[%clk 0:00:23.2]} 52. Nxg5 {[%clk 0:00:15.1]} 52... Kc3 {[%clk
0:00:20.2]} 53. Kxf4 {[%clk 0:00:13.9]} 53... Kb2 {[%clk 0:00:19.2]} 54. Ne4
{[%clk 0:00:13.7]} 54... Kxa2 {[%clk 0:00:18.4]} 55. Nc5 {[%clk 0:00:13.3]}
55... Ka3 {[%clk 0:00:15.4]} 56. Ke4 {[%clk 0:00:12.2]} 56... a4 {[%clk
0:00:14.6]} 57. bxa4 {[%clk 0:00:10.6]} 57... b3 {[%clk 0:00:13.7]} 58. Nxb3
{[%clk 0:00:07.9]} 58... Kxa4 {[%clk 0:00:12.2]} 1/2-1/2

[Event "Live Chess"]
[Site "Chess.com"]
[Date "2023.05.20"]
[Round "-"]
[White "Prijmak"]
[Black "EdenHazard8"]
[Result "0-1"]
[WhiteElo "996"]
[BlackElo "2125"]
[TimeControl "300"]
[EndTime "10:34:20 PDT"]
[Termination "EdenHazard8 won by resignation"]

1. e4 {[%clk 0:04:57]} 1... e5 {[%clk 0:04:59.5]} 2. f4 {[%clk 0:04:54.6]} 2...
exf4 {[%clk 0:04:57.8]} 3. Nf3 {[%clk 0:04:53.7]} 3... g5 {[%clk 0:04:57.1]} 4.
Bc4 {[%clk 0:04:52]} 4... g4 {[%clk 0:04:55.9]} 5. Bxf7+ {[%clk 0:04:48.3]} 5...
Kxf7 {[%clk 0:04:53.8]} 6. Ne5+ {[%clk 0:04:47.4]} 6... Ke8 {[%clk 0:04:46.4]}
7. Qxg4 {[%clk 0:04:46]} 7... Nf6 {[%clk 0:04:38.2]} 8. Qxf4 {[%clk 0:04:43.2]}
8... d6 {[%clk 0:04:33.8]} 9. Nc4 {[%clk 0:04:36.2]} 9... Be6 {[%clk 0:04:29.9]}
10. d3 {[%clk 0:04:32.4]} 10... Rg8 {[%clk 0:04:22.1]} 11. O-O {[%clk
0:04:29.4]} 11... Be7 {[%clk 0:04:16.6]} 12. Nc3 {[%clk 0:04:22.3]} 12... Nc6
{[%clk 0:04:11.9]} 13. Be3 {[%clk 0:04:16.5]} 13... Qd7 {[%clk 0:04:02.5]} 14.
Rf2 {[%clk 0:04:09.7]} 14... Ng4 {[%clk 0:04:00.2]} 15. Re2 {[%clk 0:04:05.7]}
15... Nxe3 {[%clk 0:03:58.4]} 16. Qxe3 {[%clk 0:04:01.9]} 16... Kd8 {[%clk
0:03:35.4]} 17. b3 {[%clk 0:03:58.1]} 17... Bf6 {[%clk 0:03:30.2]} 18. Qd2
{[%clk 0:03:53.6]} 18... Nd4 {[%clk 0:03:23.3]} 19. Ree1 {[%clk 0:03:46.7]}
19... Qg7 {[%clk 0:03:16.5]} 20. Rad1 {[%clk 0:03:42]} 20... Nf3+ {[%clk
0:03:13.5]} 0-1

[Event "Live Chess"]
[Site "Chess.com"]
[Date "2023.05.20"]
[Round "-"]
[White "john_chandler"]
[Black "Leonid_Starozhilov"]
[Result "0-1"]
[WhiteElo "804"]
[BlackElo "2658"]
[TimeControl "300"]
[EndTime "10:34:22 PDT"]
[Termination "Leonid_Starozhilov won by checkmate"]

1. c4 {[%clk 0:04:57.1]} 1... e5 {[%clk 0:04:59.1]} 2. Nc3 {[%clk 0:04:56.1]}
2... Nc6 {[%clk 0:04:59]} 3. e4 {[%clk 0:04:53.7]} 3... Bc5 {[%clk 0:04:57.6]}
4. Nf3 {[%clk 0:04:43.8]} 4... d6 {[%clk 0:04:56.1]} 5. g3 {[%clk 0:04:39.2]}
5... f5 {[%clk 0:04:53]} 6. d3 {[%clk 0:04:33.5]} 6... Nf6 {[%clk 0:04:51]} 7.
Nd5 {[%clk 0:04:29.3]} 7... fxe4 {[%clk 0:04:47.2]} 8. Bg5 {[%clk 0:04:22.4]}
8... exf3 {[%clk 0:04:41.8]} 9. Qxf3 {[%clk 0:04:08.5]} 9... O-O {[%clk
0:04:38.7]} 10. a3 {[%clk 0:03:58.6]} 10... Nd4 {[%clk 0:04:28.9]} 11. Qd1
{[%clk 0:03:35.7]} 11... c6 {[%clk 0:04:25.6]} 12. b4 {[%clk 0:03:25.2]} 12...
cxd5 {[%clk 0:04:21.4]} 13. bxc5 {[%clk 0:03:23.2]} 13... Qa5+ {[%clk
0:04:20.2]} 14. Bd2 {[%clk 0:03:13.6]} 14... Qxc5 {[%clk 0:04:18.9]} 15. Bb4
{[%clk 0:03:03.7]} 15... Qc7 {[%clk 0:04:14.8]} 16. Rc1 {[%clk 0:02:54.4]} 16...
Bg4 {[%clk 0:04:10.4]} 17. Qa4 {[%clk 0:02:38.2]} 17... b5 {[%clk 0:04:03.5]}
18. Qa5 {[%clk 0:02:28.7]} 18... Qxa5 {[%clk 0:03:53.5]} 19. Bxa5 {[%clk
0:02:26.9]} 19... bxc4 {[%clk 0:03:53]} 20. Bg2 {[%clk 0:02:13.3]} 20... cxd3
{[%clk 0:03:47.6]} 21. h3 {[%clk 0:02:04.9]} 21... Bf3 {[%clk 0:03:44.4]} 22.
Bxf3 {[%clk 0:01:52.4]} 22... Nxf3+ {[%clk 0:03:41.8]} 23. Kf1 {[%clk
0:01:47.7]} 23... Ne4 {[%clk 0:03:41.7]} 24. h4 {[%clk 0:01:35.3]} 24... Nfd2+
{[%clk 0:03:37.5]} 25. Bxd2 {[%clk 0:01:32.6]} 25... Rxf2+ {[%clk 0:03:37.4]}
26. Ke1 {[%clk 0:01:28.2]} 26... Re2+ {[%clk 0:03:34.6]} 27. Kf1 {[%clk
0:01:25.4]} 27... Nxd2+ {[%clk 0:03:33.3]} 28. Kg1 {[%clk 0:01:20.5]} 28... Nf3+
{[%clk 0:03:32.8]} 29. Kf1 {[%clk 0:01:17]} 29... Rf8 {[%clk 0:03:32.7]} 30. Rc7
{[%clk 0:01:05]} 30... Nh2+ {[%clk 0:03:27.7]} 31. Kg1 {[%clk 0:00:54.3]} 31...
Rf1# {[%clk 0:03:27.6]} 0-1

[Event "Live Chess"]
[Site "Chess.com"]
[Date "2023.05.20"]
[Round "-"]
[White "viktorskliarov"]
[Black "MrDodgy"]
[Result "1-0"]
[WhiteElo "2650"]
[BlackElo "2320"]
[TimeControl "300"]
[EndTime "10:34:28 PDT"]
[Termination "viktorskliarov won by resignation"]

1. e4 {[%clk 0:04:54.6]} 1... e6 {[%clk 0:04:55.3]} 2. d4 {[%clk 0:04:48.5]}
2... d5 {[%clk 0:04:54.5]} 3. e5 {[%clk 0:04:47.3]} 3... c5 {[%clk 0:04:53.2]}
4. c3 {[%clk 0:04:45.9]} 4... Nc6 {[%clk 0:04:52.5]} 5. Nf3 {[%clk 0:04:44.5]}
5... Bd7 {[%clk 0:04:44.2]} 6. a3 {[%clk 0:04:41.8]} 6... Qb6 {[%clk 0:04:31.6]}
7. b4 {[%clk 0:04:39.5]} 7... cxd4 {[%clk 0:04:30.5]} 8. cxd4 {[%clk 0:04:38]}
8... Rc8 {[%clk 0:04:23]} 9. Bb2 {[%clk 0:04:29.1]} 9... Nh6 {[%clk 0:04:20.1]}
10. Nc3 {[%clk 0:04:26.3]} 10... Nf5 {[%clk 0:04:16.4]} 11. Na4 {[%clk
0:04:24.7]} 11... Qd8 {[%clk 0:04:10.2]} 12. Rc1 {[%clk 0:04:21.1]} 12... Be7
{[%clk 0:04:04.9]} 13. Nc5 {[%clk 0:04:17.2]} 13... b6 {[%clk 0:03:59.5]} 14.
Nxd7 {[%clk 0:04:14.4]} 14... Qxd7 {[%clk 0:03:57]} 15. Bb5 {[%clk 0:04:06.2]}
15... Qb7 {[%clk 0:03:41.6]} 16. Qa4 {[%clk 0:04:00.1]} 16... Kd7 {[%clk
0:03:36.9]} 17. Ba6 {[%clk 0:03:49.3]} 17... Qb8 {[%clk 0:03:35.7]} 18. Bxc8+
{[%clk 0:03:40.9]} 18... Rxc8 {[%clk 0:03:35.6]} 19. O-O {[%clk 0:03:38.9]}
19... Qb7 {[%clk 0:03:26.9]} 20. h3 {[%clk 0:03:16.7]} 20... b5 {[%clk 0:03:23]}
21. Qd1 {[%clk 0:03:14.7]} 21... Qb6 {[%clk 0:03:16.2]} 22. Qd3 {[%clk
0:03:07.1]} 22... g6 {[%clk 0:03:08.5]} 23. Rc2 {[%clk 0:02:54.4]} 23... h5
{[%clk 0:02:45.9]} 24. Rfc1 {[%clk 0:02:51.1]} 24... a6 {[%clk 0:02:39]} 25. Bc3
{[%clk 0:02:43.6]} 25... Na7 {[%clk 0:02:25.6]} 26. Bd2 {[%clk 0:02:39.5]} 26...
Rc4 {[%clk 0:02:23.8]} 27. Be3 {[%clk 0:02:35.5]} 27... Nc6 {[%clk 0:02:19.8]}
28. g4 {[%clk 0:02:22.3]} 28... hxg4 {[%clk 0:02:12.7]} 29. hxg4 {[%clk
0:02:19.4]} 29... Nh4 {[%clk 0:01:51.9]} 30. Nxh4 {[%clk 0:02:09.5]} 30... Bxh4
{[%clk 0:01:51.8]} 31. Kg2 {[%clk 0:02:03.4]} 31... Be7 {[%clk 0:01:44.2]} 32.
Rxc4 {[%clk 0:01:44]} 32... bxc4 {[%clk 0:01:42.1]} 33. Qd2 {[%clk 0:01:42]}
33... Na7 {[%clk 0:01:41]} 34. Qe2 {[%clk 0:01:28.5]} 34... Nb5 {[%clk 0:01:38]}
35. Qf3 {[%clk 0:01:26.7]} 35... Ke8 {[%clk 0:01:37.2]} 36. Rh1 {[%clk
0:01:24.6]} 36... Nxa3 {[%clk 0:01:07.1]} 37. Rh8+ {[%clk 0:01:21.7]} 37... Kd7
{[%clk 0:01:06.6]} 38. Qxf7 {[%clk 0:01:18.6]} 38... Qxb4 {[%clk 0:01:03.7]} 39.
Qe8+ {[%clk 0:01:14.4]} 39... Kc7 {[%clk 0:01:03]} 40. Rh7 {[%clk 0:01:12.6]}
1-0